bitfinex-derivatives/quotes_SOLF0:USTF0_20230404
["timestamp","ask_amount","ask_price","bid_price","bid_amount"]
[1680606803311,1.76448486,20.843,20.836,36.25772346]
[1680606803610,10.0,20.846,20.836,36.25772346]
[1680606803808,45.3879,20.847,20.836,36.25772346]
[1680606803809,1.76448581,20.845,20.836,36.25772346]
[1680606804010,1.76448581,20.844,20.836,36.25772346]
[1680606804212,1.76448581,20.843,20.836,36.25772346]
[1680606804407,45.3879,20.847,20.836,36.25772346]
[1680606804713,1.76447968,20.846,20.836,36.25772346]
[1680606805113,1.76447968,20.845,20.836,36.25772346]
[1680606805311,1.76447968,20.844,20.836,36.25772346]
[1680606805615,1.76447968,20.843,20.836,36.25772346]
[1680606805814,35.96436919,20.85,20.836,36.25772346]
[1680606806020,35.96436919,20.85,20.843,36.19]
[1680606806021,1.76429331,20.849,20.843,36.19]
[1680606806219,0.06436919,20.85,20.843,36.19]
[1680606806413,0.06436919,20.85,20.846,36.19]
[1680606806612,1.82771519,20.855,20.846,36.19]
[1680606806808,1.76398806,20.854,20.846,36.19]
[1680606807013,1.76398806,20.853,20.846,36.19]
[1680606807318,1.76398806,20.852,20.846,36.19]
[1680606807616,1.76398806,20.851,20.846,36.19]
[1680606807817,1.76398806,20.85,20.846,36.19]
[1680606808017,0.06265874,20.858,20.846,36.19]
[1680606808214,1.82663841,20.858,20.846,36.19]
[1680606810314,1.76397967,20.857,20.846,36.19]
[1680606810511,1.76397967,20.856,20.846,36.19]
[1680606810712,1.76397967,20.855,20.846,36.19]
[1680606810916,1.76397967,20.854,20.846,36.19]
[1680606811108,1.76397967,20.853,20.846,36.19]
[1680606811313,1.76397967,20.852,20.846,36.19]
[1680606811513,1.76397967,20.851,20.843,36.25004646]
[1680606811715,1.76397967,20.85,20.843,36.25004646]
[1680606812017,10.0,20.857,20.843,36.25004646]
[1680606812018,1.76397967,20.849,20.843,36.25004646]
[1680606812220,0.06680974,20.854,20.843,36.19]
[1680606814413,35.83,20.853,20.84,48.3008]
[1680606814616,35.9,20.849,20.84,48.3008]
[1680606814918,1.76401013,20.848,20.826,100.0]
[1680606815117,36.19,20.846,20.831,36.19]
[1680606815319,1.76401013,20.845,20.831,36.19]
[1680606816122,11.82607657,20.845,20.831,36.25272759]
[1680606816419,1.76401013,20.844,20.831,36.25272759]
[1680606816613,1.76401013,20.843,20.831,36.25272759]
[1680606816810,10.06206644,20.845,20.831,36.25272759]
[1680606817017,1.764528,20.844,20.831,36.25272759]
[1680606820822,1.764528,20.843,20.831,36.25272759]
[1680606821129,10.06206644,20.845,20.831,36.25272759]
[1680606821322,1.76453282,20.844,20.831,36.25272759]
[1680606822016,144.7,20.843,20.831,0.06272759]
[1680606822417,11.76453568,20.842,20.831,0.06272759]
[1680606822619,10.0,20.842,20.831,0.06272759]
[1680606823521,144.7,20.843,20.831,0.06272759]
[1680606823820,11.76461086,20.842,20.831,0.06272759]
[1680606824023,10.0,20.842,20.831,0.06272759]
[1680606824524,144.7,20.839,20.831,0.06272759]
[1680606824717,1.76510823,20.838,20.831,0.06272759]
[1680606824913,10.0,20.837,20.831,0.06272759]
[1680606825121,1.76510823,20.836,20.828,46.8922]
[1680606826520,1.76510823,20.835,20.828,46.8922]
[1680606826722,10.0,20.838,20.828,46.8922]
[1680606826919,1.7651068,20.837,20.828,46.8922]
[1680606828521,1.7651068,20.836,20.828,46.8922]
[1680606828722,1.7651068,20.835,20.828,46.8922]
[1680606828924,1.76527323,20.834,20.828,46.8922]
[1680606829124,10.0699437,20.839,20.828,46.8922]
[1680606829421,36.19,20.836,20.828,46.7414455]
[1680606829621,1.76526735,20.835,20.828,46.7414455]
[1680606830021,11.76526735,20.835,20.828,46.7414455]
[1680606830219,1.76526735,20.834,20.828,46.7414455]
[1680606830420,36.19,20.836,20.828,46.7414455]
[1680606830616,11.76525232,20.835,20.828,46.7414455]
[1680606830923,1.76525232,20.834,20.828,46.7414455]
[1680606831221,0.0699437,20.839,20.827,0.06235356]
[1680606831423,1.83518484,20.839,20.827,0.06235356]
[1680606834219,46.19,20.838,20.827,0.06235356]
[1680606834420,1.76524114,20.837,20.827,0.06235356]
[1680606834827,11.76524114,20.837,20.827,0.06235356]
[1680606835126,1.76524114,20.836,20.827,0.06235356]
[1680606835326,144.7,20.834,20.82,36.19]
[1680606835520,35.83,20.831,20.817,36.02]
[1680606835826,10.0,20.83,20.817,36.02]
[1680606838031,180.89,20.828,20.816,47.65867204]
[1680606838333,1.76572299,20.827,20.816,0.06667204]
[1680606838529,11.76572299,20.827,20.816,0.06667204]
[1680606838834,10.0,20.827,20.816,0.06667204]
[1680606841033,1.7659615,20.826,20.816,0.06667204]
[1680606842331,23.8125507,20.831,20.816,0.06667204]
[1680606842332,0.0607083,20.831,20.822,36.19]
[1680606842537,0.0607083,20.831,20.824,36.19]
[1680606843733,0.0607083,20.831,20.827,36.19]
[1680606843934,1.76548688,20.835,20.827,36.19]
[1680606844132,0.06185366,20.836,20.827,36.19]
[1680606847738,1.82734054,20.836,20.827,36.19]
[1680606854142,0.06185366,20.836,20.827,36.19]
[1680606854343,0.06185366,20.836,20.825,100.0]
[1680606854540,14.0519516,20.848,20.835,36.19]
[1680606854842,1.76474107,20.847,20.836,83.904]
[1680606855042,1.76474107,20.846,20.836,83.904]
[1680606855242,1.76474107,20.845,20.836,83.904]
[1680606855436,1.76474107,20.848,20.836,83.904]
[1680606855640,1.76474107,20.847,20.836,83.904]
[1680606855842,1.76474107,20.846,20.836,83.904]
[1680606856043,1.76474107,20.845,20.836,83.904]
[1680606856244,1.76474107,20.844,20.836,83.904]
[1680606856439,1.76474107,20.843,20.836,83.904]
[1680606856642,1.76474107,20.842,20.836,83.904]
[1680606856843,1.76474107,20.841,20.836,83.904]
[1680606857042,1.76474107,20.84,20.836,83.904]
[1680606857244,10.06494571,20.849,20.836,83.904]
[1680606857546,1.76472994,20.848,20.836,83.904]
[1680606859046,1.76472994,20.847,20.836,83.904]
[1680606859349,1.76472994,20.846,20.839,36.19]
[1680606859646,1.76472994,20.845,20.839,36.19]
[1680606859947,1.76472994,20.844,20.839,36.19]
[1680606860144,1.76472994,20.843,20.839,36.19]
[1680606860345,1.76472994,20.842,20.836,47.714]
[1680606860550,1.76472994,20.841,20.836,47.714]
[1680606860841,1.76471155,20.84,20.836,47.714]
[1680606861045,1.76471155,20.839,20.836,47.714]
[1680606861243,36.04,20.844,20.831,0.06595901]
[1680606861445,1.7647114,20.843,20.831,0.06595901]
[1680606861646,10.0,20.842,20.831,0.06595901]
[1680606861845,1.7647114,20.841,20.831,0.06595901]
[1680606863145,83.9089114,20.841,20.831,0.06595901]
[1680606863349,1.7647114,20.84,20.831,0.06595901]
[1680606863550,10.0,20.839,20.831,0.06595901]
[1680606863849,1.7647114,20.838,20.831,0.06595901]
[1680606864547,1.7647114,20.838,20.824,36.19]
[1680606864548,10.0,20.837,20.824,36.19]
[1680606864749,1.7647114,20.836,20.824,36.19]
[1680606864943,1.7647114,20.835,20.824,36.19]
[1680606865152,1.7647114,20.834,20.824,36.19]
[1680606865347,1.7647114,20.833,20.824,36.19]
[1680606865648,1.60376236,20.832,20.824,36.19]
[1680606865853,0.06481779,20.836,20.824,36.19]
[1680606873456,1.83014463,20.836,20.824,36.19]
[1680606873752,1.76532684,20.835,20.824,36.19]
[1680606873951,1.76532684,20.834,20.824,36.19]
[1680606874151,0.06481779,20.836,20.824,36.19]
[1680606874554,0.06481779,20.836,20.827,36.19]
[1680606878056,0.06481779,20.836,20.824,36.19]
[1680606878556,1.83007109,20.836,20.824,36.19]
[1680606880759,10.0,20.835,20.822,36.0859429]
[1680606880954,1.7652533,20.834,20.822,36.0859429]
[1680606887062,1.7652533,20.834,20.816,46.3727]
[1680606887063,0.07537566,20.822,20.816,46.3727]
[1680606888861,0.07537566,20.822,20.812,0.06556879]
[1680606889759,0.07537566,20.822,20.812,14.72687566]
[1680606889955,0.07537566,20.822,20.812,0.06556879]
[1680606890259,144.77537566,20.822,20.812,0.06556879]
[1680606890559,10.0,20.821,20.812,0.06556879]
[1680606893859,144.7,20.818,20.812,0.06556879]
[1680606894058,10.0,20.817,20.808,0.06515286]
[1680606896564,144.7,20.818,20.808,0.06515286]
[1680606896865,10.0,20.817,20.808,0.06515286]
[1680606898862,10.0,20.817,20.796,46.0235]
[1680606898863,144.7,20.813,20.798,36.19]
[1680606899063,144.7,20.813,20.799,129.20763073]
[1680606899264,10.0,20.812,20.798,36.19]
[1680606899466,36.19,20.814,20.798,36.19]
[1680606899965,0.06721104,20.813,20.799,0.06753009]
[1680606900260,10.06721104,20.813,20.799,0.06753009]
[1680606900466,0.06721104,20.813,20.799,0.06753009]
[1680606900667,0.06721104,20.813,20.802,36.19]
[1680606900962,48.23,20.836,20.808,36.19]
[1680606900963,36.04,20.823,20.808,36.19]
[1680606901163,47.237,20.825,20.811,36.19]
[1680606901468,0.07537566,20.822,20.811,36.19]
[1680606902765,0.07537566,20.822,20.816,35.9]
[1680606904471,0.07537566,20.822,20.809,46.64968815]
[1680606904963,0.07537566,20.822,20.812,36.19]
[1680606905366,146.54139443,20.822,20.809,82.54968815]
[1680606905565,1.76601877,20.821,20.809,82.54968815]
[1680606905777,10.0,20.82,20.809,82.54968815]
[1680606906168,144.77537566,20.822,20.809,82.54968815]
[1680606906169,0.07537566,20.822,20.809,82.54968815]
[1680606906472,1.8418155,20.822,20.809,82.54968815]
[1680606906767,11.8418155,20.822,20.809,82.54968815]
[1680606907069,1.76643984,20.821,20.809,82.54968815]
[1680606907465,10.07537566,20.822,20.809,82.54968815]
[1680606907966,10.07537566,20.822,20.809,35.96328815]
[1680606908174,144.7,20.816,20.809,0.06328815]
[1680606908665,10.0,20.815,20.809,0.06328815]
[1680606908863,10.0,20.815,20.805,0.06540844]
[1680606909270,35.9,20.819,20.805,0.06540844]
[1680606909575,11.76654153,20.818,20.805,0.06540844]
[1680606909871,35.9,20.819,20.805,0.06540844]
[1680606910066,1.76654316,20.818,20.805,0.06540844]
[1680606910369,0.06189954,20.82,20.808,36.19]
[1680606910670,0.06189954,20.82,20.811,36.19]
[1680606911972,0.06189954,20.82,20.814,36.19]
[1680606912176,0.07537566,20.822,20.814,36.19]
[1680606914472,0.07537566,20.822,20.817,36.19]
[1680606915177,0.07537566,20.822,20.812,36.19]
[1680606915178,0.07537566,20.822,20.82,36.19]
[1680606915373,1.76604761,20.824,20.82,36.19]
[1680606915676,0.06623068,20.828,20.814,100.0]
[1680606915677,0.06623068,20.828,20.823,35.9]
[1680606915873,36.19,20.838,20.823,35.9]
[1680606915874,1.76557326,20.832,20.823,35.9]
[1680606916177,1.76557326,20.831,20.824,47.8953]
[1680606916476,0.0662467,20.833,20.824,47.8953]
[1680606916477,1.76557326,20.83,20.824,47.8953]
[1680606916777,0.0662467,20.833,20.824,47.8953]
[1680606917178,1.83181012,20.833,20.827,36.19]
[1680606917378,1.76556342,20.832,20.827,36.19]
[1680606917578,1.76556342,20.831,20.827,36.19]
[1680606917775,0.06235421,20.837,20.827,36.19]
[1680606917974,0.06235421,20.837,20.83,35.9]
[1680606920578,1.82788935,20.837,20.83,35.9]
[1680606920774,1.76553514,20.836,20.83,35.9]
[1680606920980,0.06235421,20.837,20.833,35.9]
[1680606921275,1.76527785,20.841,20.833,35.9]
[1680606921679,1.76527785,20.84,20.833,35.9]
[1680606921880,1.76527785,20.839,20.834,45.7823]
[1680606922079,1.76527785,20.838,20.834,45.7823]
[1680606922380,1.76527785,20.837,20.834,45.7823]
[1680606922577,1.76527785,20.836,20.833,35.9]
[1680606922782,1.76527785,20.835,20.833,35.9]
[1680606922982,0.06460117,20.842,20.833,35.9]
[1680606923784,0.06460117,20.842,20.838,36.19]
[1680606923982,1.76526888,20.845,20.838,36.19]
[1680606924283,1.76526888,20.844,20.838,36.19]
[1680606924485,1.76526888,20.843,20.838,36.19]
[1680606924684,6.888e-05,20.842,20.841,36.19]
[1680606924879,0.06754109,20.849,20.841,36.19]
[1680606926778,0.06754109,20.849,20.844,35.9]
[1680606926982,1.76440056,20.85,20.844,35.9]
[1680606927183,5.6e-07,20.849,20.844,35.9]
[1680606927384,0.07013925,20.854,20.844,35.9]
[1680606932692,0.07013925,20.854,20.845,47.923]
[1680606935193,0.07013925,20.854,20.851,36.02]
[1680606935389,0.0696377,20.86,20.851,36.02]
[1680606935691,0.07075684,20.863,20.851,36.02]
[1680606936790,0.07075628,20.863,20.851,36.02]
[1680606936992,0.07075684,20.863,20.851,36.02]
[1680606937295,0.07075628,20.863,20.851,36.02]
[1680606937685,0.07075684,20.863,20.851,36.02]
[1680606938088,0.07075628,20.863,20.851,36.02]
[1680606938496,35.83,20.862,20.848,36.08072924]
[1680606938699,5.6e-07,20.861,20.848,36.08072924]
[1680606944595,5.6e-07,20.861,20.851,36.19]
[1680606944791,0.07075628,20.863,20.851,36.19]
[1680606945699,0.07075684,20.863,20.851,36.19]
[1680606946001,0.07075628,20.863,20.851,36.19]
[1680606946596,0.07075628,20.863,20.854,36.19]
[1680606946814,0.07075628,20.863,20.848,0.06072924]
[1680606946815,14.58037336,20.87,20.861,36.02]
[1680606946997,1.76266916,20.869,20.862,36.19]
[1680606947202,78.39396488,20.871,20.867,36.19]
[1680606947404,78.39396488,20.871,20.87,36.19]
[1680606947703,47.44436488,20.871,20.87,36.19]
[1680606952497,30.66956488,20.871,20.87,36.19]
[1680606952702,0.06568938,20.878,20.871,10.0]
[1680606952902,0.06568938,20.878,20.874,36.19]
[1680606953102,0.07123831,20.883,20.874,36.19]
[1680606954811,1.83266561,20.883,20.874,36.19]
[1680606955006,0.07123831,20.883,20.878,36.02]
[1680606955207,1.76131795,20.886,20.878,36.02]
[1680606955709,0.07025994,20.888,20.878,36.02]
[1680606956217,1.83158526,20.888,20.878,36.02]
[1680606956506,1.76132532,20.887,20.878,36.02]
[1680606956706,1.76132532,20.886,20.878,36.02]
[1680606957012,0.07025994,20.888,20.878,36.02]
[1680606957704,0.07025994,20.888,20.879,44.4312]
[1680606958110,0.07025994,20.888,20.875,0.06765842]
[1680606958309,1.83159223,20.888,20.875,0.06765842]
[1680606958511,36.19,20.886,20.875,0.06765842]
[1680606958712,1.76133229,20.885,20.875,0.06765842]
[1680606959712,11.76133229,20.885,20.875,0.06765842]
[1680606959914,1.76133229,20.884,20.875,0.06765842]
[1680606963813,1.76133229,20.883,20.875,0.06765842]
[1680606964111,1.76133229,20.882,20.875,0.06765842]
[1680606964319,0.07025994,20.888,20.877,36.19]
[1680606966418,35.9,20.887,20.876,44.4182]
[1680606966718,1.76119368,20.886,20.876,44.4182]
[1680606967018,1.76119368,20.885,20.876,44.4182]
[1680606967218,1.76119368,20.884,20.876,44.4182]
[1680606967414,1.76119368,20.883,20.876,44.4182]
[1680606967618,1.76119368,20.882,20.876,44.4182]
[1680606967821,1.76119368,20.881,20.876,44.4182]
[1680606968019,35.83,20.887,20.876,44.4182]
[1680606968320,1.7616482,20.886,20.876,44.4182]
[1680606968520,1.7616482,20.886,20.875,0.06765842]
[1680606970922,1.7616482,20.886,20.876,36.19]
[1680606971120,1.7616482,20.885,20.876,36.19]
[1680606971316,0.07025994,20.888,20.876,36.19]
[1680606971317,1.7616482,20.884,20.876,36.19]
[1680606971619,0.07025994,20.888,20.876,36.19]
[1680606972017,0.07025994,20.888,20.876,84.0921]
[1680606972018,1.83120008,20.888,20.876,84.0921]
[1680606972225,1.76094014,20.887,20.876,84.0921]
[1680606972423,1.76094014,20.886,20.876,84.0921]
[1680606972625,1.76094014,20.885,20.876,47.9021]
[1680606972823,0.07025994,20.888,20.876,47.9021]
[1680606973023,0.07025994,20.888,20.877,36.19]
[1680606974422,36.04,20.878,20.856,36.16]
[1680606974623,36.04,20.878,20.844,114.53217857]
[1680606974624,1.76107805,20.877,20.844,114.53217857]
[1680606974927,35.83,20.867,20.851,46.9526]
[1680606975126,35.83,20.867,20.852,36.19]
[1680606975430,35.83,20.864,20.852,0.07076449]
[1680606976521,36.19,20.857,20.843,35.9]
[1680606976717,36.19,20.857,20.834,100.0]
[1680606976718,36.19,20.857,20.834,147.942]
[1680606977322,10.0,20.863,20.834,147.942]
[1680606977323,47.93,20.858,20.842,47.93]
[1680606977522,10.0,20.856,20.842,47.93]
[1680606977722,10.0,20.856,20.843,0.06895329]
[1680606977723,47.85,20.855,20.843,0.06895329]
[1680606977928,47.85,20.855,20.842,0.06886686]
[1680606978234,10.0,20.854,20.842,0.06886686]
[1680606978721,47.85,20.855,20.842,0.06886686]
[1680606979425,0.06169218,20.856,20.842,47.99886686]
[1680606983822,0.06169218,20.856,20.845,47.93]
[1680606984128,0.06169218,20.856,20.848,47.93]
[1680606988139,177.182361,20.895,20.842,0.06886686]
[1680606988140,47.93,20.874,20.854,147.69]
[1680606988343,1.762158,20.873,20.86,47.93]
[1680606988538,47.85,20.877,20.86,47.93]
[1680606988735,1.76208096,20.876,20.86,47.93]
[1680606989138,10.0673092,20.875,20.861,0.06438392]
[1680606989340,47.93,20.873,20.861,0.06438392]
[1680606989540,1.76208096,20.872,20.861,0.06438392]
[1680606989943,10.0,20.871,20.861,0.06438392]
[1680606990539,47.76,20.87,20.861,0.06438392]
[1680606990739,10.0,20.869,20.861,0.06438392]
[1680606992545,95.0222,20.87,20.861,0.06438392]
[1680606993346,10.0,20.869,20.861,0.06438392]
[1680606993748,95.0222,20.87,20.861,0.06438392]
[1680606994451,10.0,20.869,20.861,0.06438392]
[1680606994845,95.0222,20.87,20.861,0.06438392]
[1680606995043,47.2622,20.87,20.861,0.06438392]
[1680606997149,10.0,20.869,20.861,0.06438392]
[1680606998747,47.76,20.864,20.861,0.00438392]
[1680606999043,10.0,20.863,20.855,46.0262]
[1680607000251,47.76,20.86,20.852,0.06743826]
[1680607000653,47.76,20.86,20.852,0.00743826]
[1680607000948,10.0,20.859,20.852,0.00743826]
[1680607001748,55.4568,20.859,20.852,0.00743826]
[1680607001944,47.76,20.857,20.852,0.00743826]
[1680607002150,47.76,20.857,20.847,0.06576522]
[1680607002352,10.0,20.856,20.845,0.07093165]
[1680607003246,47.76,20.857,20.845,0.07093165]
[1680607003751,47.93,20.857,20.845,0.07093165]
[1680607003948,10.0,20.856,20.845,0.07093165]
[1680607005056,47.93,20.857,20.845,0.07093165]
[1680607005247,10.0,20.856,20.845,0.07093165]
[1680607005448,14.04595035,20.878,20.855,47.93]
[1680607005747,47.7191,20.879,20.865,47.93]
[1680607006047,47.69,20.895,20.842,192.63]
[1680607006048,47.93,20.885,20.869,47.93]
[1680607006251,10.0,20.881,20.869,47.93]
[1680607006444,47.93,20.885,20.869,47.93]
[1680607006445,0.07148359,20.882,20.869,47.93]
[1680607006750,0.07148359,20.882,20.872,47.93]
[1680607008447,1.83245868,20.882,20.872,47.93]
[1680607008653,0.07148359,20.882,20.872,47.93]
[1680607010855,0.07148359,20.882,20.868,0.06663793]
[1680607010856,0.07148359,20.882,20.869,47.93]
[1680607011754,0.07148359,20.882,20.872,47.93]
[1680607012257,1.83246918,20.882,20.872,47.93]
[1680607012455,1.76098559,20.881,20.872,47.93]
[1680607012658,0.07148359,20.882,20.872,47.93]
[1680607012855,47.7191,20.892,20.872,47.93]
[1680607012856,47.93,20.905,20.883,100.0]
[1680607013055,46.1934,20.905,20.895,47.69]
[1680607013258,1.76004593,20.904,20.895,47.69]
[1680607013759,1.76004593,20.904,20.883,100.0]
[1680607013760,1.76004593,20.904,20.899,47.69]
[1680607013955,47.76,20.915,20.883,100.0]
[1680607013956,1.76004593,20.903,20.901,47.93]
[1680607014157,1.76004593,20.902,20.901,47.93]
[1680607014459,0.06204508,20.909,20.901,47.93]
[1680607015256,1.82209101,20.909,20.901,47.93]
[1680607015459,1.76004593,20.908,20.901,47.93]
[1680607015761,1.76004593,20.907,20.901,47.93]
[1680607015961,1.76004593,20.906,20.901,47.93]
[1680607016160,1.76004593,20.905,20.901,47.93]
[1680607016362,0.06204508,20.909,20.901,47.93]
[1680607022961,1.459e-05,20.913,20.901,47.93]
[1680607023167,46.6539,20.935,20.912,95.86]
[1680607023367,1.75800097,20.934,20.925,47.93]
[1680607024167,10.0,20.933,20.925,47.93]
[1680607024466,1.75800097,20.932,20.925,47.93]
[1680607024862,0.06383495,20.937,20.925,47.93]
[1680607024863,1.75800097,20.931,20.925,47.93]
[1680607025062,1.75800097,20.93,20.925,47.93]
[1680607025268,191.3539,20.947,20.922,0.07146368]
[1680607025269,47.76,20.966,20.93,95.49]
[1680607025567,47.76,20.952,20.936,47.69]
[1680607025767,47.93,20.949,20.933,47.93]
[1680607026065,11.75622281,20.948,20.933,47.93]
[1680607026260,1.75622281,20.947,20.933,47.99271872]
[1680607026467,47.93,20.946,20.933,0.06271872]
[1680607026658,10.0,20.941,20.927,47.93]
[1680607026861,47.85,20.939,20.923,47.93]
[1680607027661,10.06368667,20.938,20.924,0.06859437]
[1680607027869,0.06268279,20.938,20.928,47.93]
[1680607028369,0.06268279,20.938,20.925,47.93]
[1680607030070,47.85,20.937,20.924,0.06687904]
[1680607030768,47.93,20.93,20.914,44.6063]
[1680607030971,10.0,20.929,20.903,100.0]
[1680607031166,47.93,20.93,20.903,100.0]
[1680607031167,47.93,20.93,20.914,47.93]
[1680607031668,10.06085736,20.929,20.918,47.93]
[1680607031863,10.0,20.929,20.918,47.93]
[1680607032067,10.0,20.929,20.916,0.06267433]
[1680607042681,34.03206017,20.929,20.916,0.06267433]
[1680607042881,10.0,20.929,20.916,0.06267433]
[1680607043284,0.02449485,20.916,20.913,47.86]
[1680607045183,0.02449485,20.916,20.907,47.73698487]
[1680607050785,0.02449485,20.916,20.91,47.56]
[1680607059593,0.02449485,20.916,20.913,100.0]
[1680607061395,0.02449485,20.916,20.91,47.56]
[1680607063595,0.02449485,20.916,20.907,0.06698487]
[1680607063596,0.02449485,20.916,20.914,47.86]
[1680607064101,0.06516123,20.922,20.914,47.86]
[1680607065495,14.27998542,20.938,20.92,47.72]
[1680607066496,0.06901517,20.932,20.92,47.72]
[1680607069195,0.06901517,20.932,20.921,47.3125]
[1680607070806,0.06901517,20.932,20.923,147.72]
[1680607071898,0.06901517,20.932,20.923,47.72]
[1680607080908,0.06901517,20.932,20.921,47.3125]
[1680607090719,0.06901517,20.932,20.922,147.72]
[1680607094020,0.06901517,20.932,20.922,292.42]
[1680607094217,45.9595343,20.953,20.927,47.67]
[1680607094218,89.6427231,20.953,20.927,47.67]
[1680607094527,68.91321833,20.952,20.927,47.67]
[1680607094721,47.56,20.95,20.927,47.67]
[1680607095015,47.56,20.95,20.928,10.0]
[1680607095218,0.06371752,20.946,20.932,0.06987746]
[1680607096613,10.06371752,20.946,20.932,0.06987746]
[1680607097318,35.85,20.943,20.932,0.06987746]
[1680607097520,47.4498,20.942,20.932,0.06987746]
[1680607099815,47.4498,20.942,20.933,35.85]
[1680607100623,47.4498,20.942,20.932,0.06987746]
[1680607101019,66.00937444,20.966,20.933,144.7]
[1680607101220,48.1591,20.958,20.952,35.83]
[1680607101424,35.83,20.966,20.952,135.83]
[1680607101622,10.0,20.965,20.952,135.83]
[1680607101918,10.0,20.965,20.952,35.83]
[1680607102123,10.0,20.965,20.952,135.83]
[1680607102324,10.0,20.965,20.952,35.83]
[1680607103421,10.0,20.965,20.951,0.06404092]
[1680607103422,35.85,20.963,20.951,0.06404092]
[1680607103726,10.0,20.962,20.951,0.06404092]
[1680607104127,10.0,20.961,20.951,0.06404092]
[1680607104419,35.85,20.963,20.951,0.06404092]
[1680607104620,10.0,20.956,20.951,0.06404092]
[1680607104826,10.0,20.956,20.946,0.07055931]
[1680607105228,35.49,20.957,20.946,0.07055931]
[1680607105526,48.3646,20.955,20.946,0.07055931]
[1680607106026,45.85,20.954,20.946,0.07055931]
[1680607106228,35.83,20.952,20.946,0.07055931]
[1680607106526,10.0,20.951,20.942,0.06699611]
[1680607106728,35.85,20.948,20.939,0.07049072]
[1680607107127,35.85,20.945,20.939,0.07049072]
[1680607107330,35.85,20.945,20.931,50.04983443]
[1680607107331,35.49,20.942,20.935,0.06065773]
[1680607107628,10.0,20.941,20.931,0.06707955]
[1680607107824,35.85,20.938,20.931,0.06707955]
[1680607108031,35.85,20.935,20.921,35.83]
[1680607109124,35.91307342,20.935,20.921,35.90050088]
[1680607112228,35.91307342,20.935,20.921,0.07050088]
[1680607112229,0.06307342,20.935,20.921,0.07050088]
[1680607114031,0.06307342,20.935,20.923,47.83]
[1680607114533,0.06307342,20.935,20.927,47.64]
[1680607115734,0.06307342,20.935,20.931,47.64]
[1680607115933,0.07109458,20.94,20.931,47.64]
[1680607124434,0.07109458,20.94,20.934,47.83]
[1680607124632,0.06292059,20.944,20.934,47.83]
[1680607127740,0.06292059,20.944,20.932,0.06740467]
[1680607128741,10.06292059,20.944,20.932,0.06740467]
[1680607129342,47.83,20.939,20.932,0.06740467]
[1680607129640,10.0,20.938,20.932,0.06740467]
[1680607129942,10.0,20.938,20.928,0.06488094]
[1680607130439,47.65,20.936,20.928,0.06488094]
[1680607130737,10.0,20.935,20.928,0.06488094]
[1680607132240,47.65,20.933,20.928,0.06488094]
[1680607132436,47.65,20.933,20.923,0.06209268]
[1680607132641,47.65,20.933,20.921,0.07022686]
[1680607133142,10.0,20.932,20.921,0.07022686]
[1680607133742,47.65,20.933,20.921,0.07022686]
[1680607134139,10.0,20.932,20.921,0.07022686]
[1680607134343,0.06684772,20.935,20.923,47.77]
[1680607138143,100.0,20.941,20.922,44.6202]
[1680607138144,24.02995202,20.95,20.93,47.64]
[1680607138342,177.182361,20.966,20.93,47.64]
[1680607138343,44.5587,20.949,20.93,47.64]
[1680607138543,23.51053461,20.97,20.943,47.56]
[1680607138841,66.00937444,20.971,20.926,47.83]
[1680607138842,100.0,20.971,20.946,47.77]
[1680607139144,47.83,20.967,20.951,100.0]
[1680607139349,0.06877814,20.966,20.951,100.06578275]
[1680607139546,47.83,20.964,20.951,0.06578275]
[1680607140650,10.0,20.963,20.951,0.06578275]
[1680607141148,47.83,20.961,20.951,0.06578275]
[1680607141749,47.65,20.964,20.951,0.06578275]
[1680607142354,10.0,20.963,20.951,0.06578275]